fUSD/lending_fUSD_20260226
["ID","MTS","AMOUNT","RATE_DAILY","PERIOD"]
[406703504,1772105441418,-980.09339,0.0001,2]
[406703505,1772105441428,-980.09339,0.0001,2]
[406703506,1772105441438,-980.09339,0.0001,2]
[406703507,1772105441447,-980.09339,0.0001,2]
[406703508,1772105441457,-151.0,0.0001,2]
[406703509,1772105441466,-151.0,0.0001,2]
[406703510,1772105441475,-151.0,0.0001,2]
[406703511,1772105441485,-151.0,0.0001,2]
[406703512,1772105441494,-151.0,0.0001,2]
[406703513,1772105441504,-151.0,0.0001,2]
[406703514,1772105441513,-151.0,0.0001,2]
[406703515,1772105441523,-151.0,0.0001,2]
[406703516,1772105441532,-151.0,0.0001,2]
[406703517,1772105441541,-151.0,0.0001,2]
[406703518,1772105441551,-151.0,0.0001,2]
[406703519,1772105441561,-500.0,0.0001,2]
[406703520,1772105441570,-151.0,0.0001,2]
[406703521,1772105441579,-151.0,0.0001,2]
[406703522,1772105441589,-151.0,0.0001,2]
[406703523,1772105441598,-500.0,0.0001,2]
[406703524,1772105441608,-151.0,0.0001,2]
[406703525,1772105441617,-151.0,0.0001,2]
[406703526,1772105441626,-500.0,0.0001,2]
[406703527,1772105441636,-151.0,0.0001,2]
[406703528,1772105441645,-500.0,0.0001,2]
[406703529,1772105441655,-151.0,0.0001,2]
[406703530,1772105441665,-500.0,0.0001,2]
[406703531,1772105441675,-151.0,0.0001,2]
[406703532,1772105441684,-151.0,0.0001,2]
[406703533,1772105441695,-500.0,0.0001,2]
[406703534,1772105441705,-151.0,0.0001,2]
[406703535,1772105441716,-500.0,0.0001,2]
[406703536,1772105441725,-151.0,0.0001,2]
[406703537,1772105441734,-500.0,0.0001,2]
[406703538,1772105441744,-151.0,0.0001,2]
[406703539,1772105441753,-500.0,0.0001,2]
[406703540,1772105441763,-151.0,0.0001,2]
[406703541,1772105441772,-500.0,0.0001,2]
[406703542,1772105441782,-500.0,0.0001,2]
[406703543,1772105441791,-500.0,0.0001,2]
[406703544,1772105441801,-151.0,0.0001,2]
[406703545,1772105441810,-500.0,0.0001,2]
[406703546,1772105441820,-151.0,0.0001,2]
[406703547,1772105441830,-500.0,0.0001,2]
[406703548,1772105441839,-151.0,0.0001,2]
[406703549,1772105441849,-500.0,0.0001,2]
[406703550,1772105441858,-151.0,0.0001,2]
[406703551,1772105441868,-500.0,0.0001,2]
[406703552,1772105441877,-151.0,0.0001,2]
[406703553,1772105441887,-553.9571256,0.0001,2]
[406703554,1772105441896,-151.0,0.0001,2]
[406703555,1772105441905,-200.0,0.0001,2]
[406703556,1772105441914,-151.0,0.0001,2]
[406703557,1772105441924,-151.0,0.0001,2]
[406703558,1772105441934,-151.0,0.0001,2]
[406703559,1772105441944,-151.0,0.0001,2]
[406703560,1772105441953,-151.0,0.0001,2]
[406703561,1772105441964,-151.0,0.0001,2]
[406703562,1772105441975,-151.0,0.0001,2]
[406703563,1772105441986,-151.0,0.0001,2]
[406703564,1772105441995,-151.0,0.0001,2]
[406703565,1772105442005,-151.0,0.0001,2]
[406703566,1772105442014,-151.0,0.0001,2]
[406703567,1772105442024,-151.0,0.0001,2]
[406703568,1772105442034,-151.0,0.0001,2]
[406703569,1772105442044,-151.0,0.0001,2]
[406703570,1772105442054,-151.0,0.0001,2]
[406703571,1772105442063,-151.0,0.0001,2]
[406703572,1772105442073,-151.0,0.0001,2]
[406703573,1772105442082,-151.0,0.0001,2]
[406703574,1772105442204,-1186.11241235,0.0001,2]
[406703575,1772105442214,-151.0,0.0001,2]
[406703576,1772105442223,-151.0,0.0001,2]
[406703577,1772105442232,-151.0,0.0001,2]
[406703578,1772105442242,-151.0,0.0001,2]
[406703579,1772105442251,-151.0,0.0001,2]
[406703580,1772105442261,-151.0,0.0001,2]
[406703581,1772105442275,-151.0,0.0001,2]
[406703582,1772105442284,-367.75891248,0.0001,2]
[406703583,1772105442294,-1070.62307231,0.0001,2]
[406703584,1772105442303,-3292.0,0.00010033,2]
[406703585,1772105442315,-151.0,0.00010035,2]
[406703586,1772105442324,-222.0,0.00010035,2]
[406703587,1772105442334,-290.37,0.00010046,2]
[406703588,1772105442345,-195.02,0.000101,2]
[406703589,1772105442356,-1000.0,0.0001017,2]
[406703590,1772105442365,-1000.0,0.0001017,2]
[406703591,1772105442374,-500.0,0.0001017,2]
[406703592,1772105442383,-500.0,0.0001017,2]
[406703593,1772105442392,-1000.0,0.00010274,2]
[406703594,1772105442402,-384.64,0.00010289,2]
[406703595,1772105442411,-682.2513065,0.000103,2]
[406703596,1772105442420,-1907.79009974,0.000103,2]
[406703597,1772105442429,-3284.368805,0.000103,2]
[406703598,1772105442438,-5531.0,0.000103,3]
[406703599,1772105442448,-151.0,0.000103,2]
[406703600,1772105442458,-500.0,0.000103,2]
[406703601,1772105442467,-500.0,0.000103,2]
[406703602,1772105442478,-500.0,0.000103,2]
[406703603,1772105442488,-500.0,0.000103,2]
[406703604,1772105442498,-500.0,0.000103,2]
[406703605,1772105442508,-500.0,0.000103,2]
[406703606,1772105442518,-500.0,0.000103,2]
[406703607,1772105442527,-500.0,0.000103,2]
[406703608,1772105442536,-500.0,0.000103,2]
[406703609,1772105442546,-500.0,0.000103,2]
[406703610,1772105442555,-500.0,0.000103,2]
[406703611,1772105442566,-500.0,0.000103,2]
[406703612,1772105442575,-500.0,0.000103,2]
[406703613,1772105442585,-500.0,0.000103,2]
[406703614,1772105442595,-500.0,0.000103,2]
[406703615,1772105442604,-500.0,0.000103,2]
[406703616,1772105442613,-500.0,0.000103,2]
[406703617,1772105442622,-500.0,0.000103,2]
[406703618,1772105442632,-500.0,0.000103,2]
[406703619,1772105442641,-500.0,0.000103,2]
[406703620,1772105442650,-500.0,0.000103,2]
[406703621,1772105442660,-500.0,0.000103,2]
[406703622,1772105442669,-719.22414134,0.000103,2]
[406703623,1772105442679,-500.0,0.000103,2]
[406703624,1772105442688,-500.0,0.000103,2]
[406703625,1772105442697,-500.0,0.000103,2]
[406703626,1772105442706,-500.0,0.000103,2]
[406703627,1772105442716,-500.0,0.000103,2]
[406703628,1772105442726,-500.98925879,0.000103,2]
[406703629,1772105442735,-500.0,0.000103,2]
[406703630,1772105442745,-500.0,0.000103,2]
[406703631,1772105442754,-500.0,0.000103,2]
[406703632,1772105442763,-500.0,0.000103,2]
[406703633,1772105442773,-500.0,0.000103,2]
[406703634,1772105442783,-500.0,0.000103,2]
[406703635,1772105442792,-500.0,0.000103,2]
[406703636,1772105442802,-500.0,0.000103,2]
[406703637,1772105442811,-500.0,0.000103,2]
[406703638,1772105442820,-500.0,0.000103,2]
[406703639,1772105442830,-500.0,0.000103,2]
[406703640,1772105442840,-500.0,0.000103,2]
[406703641,1772105442849,-500.0,0.000103,2]
[406703642,1772105442859,-961.38050212,0.000103,2]
[406703643,1772105442868,-500.0,0.000103,2]
[406703644,1772105442878,-502.76700379,0.000103,2]
[406703645,1772105442888,-500.0,0.000103,2]
[406703647,1772105442897,-500.0,0.000103,2]
[406703648,1772105442907,-500.0,0.000103,2]
[406703649,1772105442917,-500.0,0.000103,2]
[406703650,1772105442926,-500.0,0.000103,2]
[406703652,1772105442936,-500.0,0.000103,2]
[406703654,1772105442946,-500.0,0.000103,2]
[406703655,1772105442955,-500.0,0.000103,2]
[406703656,1772105442965,-500.0,0.000103,2]
[406703657,1772105442974,-500.0,0.000103,2]
[406703658,1772105442983,-500.0,0.000103,2]
[406703659,1772105442993,-500.0,0.000103,2]
[406703660,1772105443003,-500.0,0.000103,2]
[406703661,1772105443012,-500.93049898,0.000103,2]
[406703662,1772105443021,-500.0,0.000103,2]
[406703663,1772105443031,-500.0,0.000103,2]
[406703664,1772105443040,-500.0,0.000103,2]
[406703665,1772105443050,-500.0,0.000103,2]
[406703667,1772105443060,-643.7180745,0.000103,2]
[406703669,1772105443070,-500.0,0.000103,2]
[406703671,1772105443080,-500.0,0.000103,2]
[406703672,1772105443090,-500.0,0.000103,2]
[406703673,1772105443100,-500.0,0.000103,2]
[406703674,1772105443109,-500.0,0.000103,2]
[406703676,1772105443118,-500.0,0.000103,2]
[406703677,1772105443128,-500.0,0.000103,2]
[406703678,1772105443137,-500.0,0.000103,2]
[406703679,1772105443147,-500.0,0.000103,2]
[406703680,1772105443156,-500.0,0.000103,2]
[406703681,1772105443165,-500.0,0.000103,2]
[406703682,1772105443175,-500.0,0.000103,2]
[406703683,1772105443184,-500.0,0.000103,2]
[406703685,1772105443194,-500.0,0.000103,2]
[406703686,1772105443204,-500.0,0.000103,2]
[406703687,1772105443214,-500.0,0.000103,2]
[406703688,1772105443223,-500.0,0.000103,2]
[406703690,1772105443233,-759.53460543,0.000103,2]
[406703691,1772105443243,-848.80379452,0.000103,2]
[406703692,1772105443253,-500.0,0.000103,2]
[406703693,1772105443262,-576.70003005,0.000103,2]
[406703694,1772105443276,-500.0,0.000103,2]
[406703695,1772105443286,-653.71723476,0.000103,2]
[406703696,1772105443296,-500.0,0.000103,2]
[406703697,1772105443306,-500.0,0.000103,2]
[406703698,1772105443316,-791.66917409,0.000103,2]
[406703699,1772105443325,-500.0,0.000103,2]
[406703700,1772105443336,-500.0,0.000103,2]
[406703701,1772105443347,-785.68353372,0.000103,2]
[406703702,1772105443356,-500.0,0.000103,2]
[406703703,1772105443366,-500.0,0.000103,2]
[406703704,1772105443375,-861.07776578,0.000103,2]
[406703705,1772105443386,-500.0,0.000103,2]
[406703706,1772105443395,-500.0,0.000103,2]
[406703707,1772105443405,-500.0,0.000103,2]
[406703708,1772105443414,-678.99558819,0.000103,2]
[406703709,1772105443423,-841.12614191,0.000103,2]
[406703710,1772105443433,-615.5072787,0.000103,2]
[406703711,1772105443443,-500.0,0.000103,2]
[406703712,1772105443454,-804.72276255,0.000103,2]
[406703713,1772105443463,-705.08270808,0.000103,2]
[406703714,1772105443473,-500.0,0.000103,2]
[406703715,1772105443484,-500.0,0.000103,2]
[406703716,1772105443495,-965.36722403,0.000103,2]
[406703717,1772105443506,-580.04221442,0.000103,2]
[406703718,1772105443516,-500.0,0.000103,2]
[406703719,1772105443525,-814.80586254,0.000103,2]
[406703720,1772105443535,-953.73723476,0.000103,2]
[406703721,1772105443545,-532.0420997,0.000103,2]
[406703723,1772105443554,-811.2919534,0.000103,2]
[406703724,1772105443563,-317.21684957,0.00010446,2]
[406703725,1772105443582,-182.78315043,0.00010446,2]
[406703726,1772105443591,-364.25151623,0.00010446,2]
[406703727,1772105443610,-135.74848377,0.00010446,2]
[406703728,1772105443620,-500.0,0.00010446,2]
[406703729,1772105443630,-500.0,0.00010446,2]
[406703730,1772105443641,-500.0,0.00010446,2]
[406703731,1772105443651,-500.0,0.00010446,2]
[406703732,1772105443661,-500.0,0.00010446,2]
[406703733,1772105443670,-500.0,0.00010446,2]
[406703734,1772105443679,-500.0,0.00010446,2]
[406703735,1772105443689,-500.0,0.00010446,2]
[406703736,1772105443698,-500.0,0.00010446,2]
[406703737,1772105443708,-151.10043624,0.00010446,2]
[406703738,1772105443718,-246.13271968,0.00010446,2]
[406703739,1772105443727,-290.37,0.00010502,2]
[406703740,1772105443737,-203.20755131,0.00010548,2]
[406703741,1772105443749,-5531.0,0.000106,5]
[406703742,1772105443759,-155.0,0.00010696,2]
[406703743,1772105443771,-990.0,0.000107,2]
[406703744,1772105443780,-8119.2427,0.00010728,2]
[406703745,1772105443789,-1445.766505,0.0001077,2]
[406703746,1772105443801,-2706.79276,0.0001077,2]
[406703747,1772105443810,-500.75663163,0.00010829,2]
[406703748,1772105443821,-500.06072906,0.00010829,2]
[406703749,1772105443831,-164.76814521,0.00010829,2]
[406703750,1772105443840,-500.09057479,0.00010829,2]
[406703751,1772105443850,-500.0,0.00010829,2]
[406703752,1772105443859,-500.0,0.00010829,2]
[406703753,1772105443869,-500.23170611,0.00010829,2]
[406703754,1772105443879,-501.10602996,0.00010829,2]
[406703755,1772105443989,-500.22029316,0.00010829,2]
[406703756,1772105443998,-167.01035166,0.00010829,2]
[406703757,1772105444007,-500.08820078,0.00010829,2]
[406703758,1772105444016,-500.08836173,0.00010829,2]
[406703759,1772105444026,-500.0,0.00010829,2]
[406703760,1772105444036,-500.0,0.00010829,2]
[406703761,1772105444046,-610.55972537,0.00010829,2]
[406703762,1772105444056,-500.08514565,0.00010829,2]
[406703763,1772105444066,-165.39582799,0.00010829,2]
[406703764,1772105444075,-500.82940591,0.00010829,2]
[406703765,1772105444086,-500.78794822,0.00010829,2]
[406703766,1772105444096,-384.74874007,0.00010829,2]
[406703767,1772105444105,-588.93145599,0.00010829,2]
[406703768,1772105444114,-500.51046148,0.00010829,2]
[406703769,1772105444124,-503.65630959,0.00010829,2]
[406703770,1772105444133,-500.95701525,0.00010829,2]
[406703771,1772105444143,-500.93369528,0.00010829,2]
[406703772,1772105444153,-500.65480064,0.00010829,2]
[406703773,1772105444163,-500.0,0.00010829,2]
[406703774,1772105444172,-500.49462905,0.00010829,2]
[406703775,1772105444182,-240.05255331,0.00010829,2]
[406703776,1772105444192,-500.0,0.00010829,2]
[406703777,1772105444201,-500.0,0.00010829,2]
[406703778,1772105444211,-501.08752004,0.00010829,2]
[406703779,1772105444221,-500.35476921,0.00010829,2]
[406703780,1772105444230,-225.98064,0.0001085,2]
[406703781,1772105444240,-151.0,0.000109,2]
[406703782,1772105444250,-151.0,0.000109,2]
[406703783,1772105444259,-151.0,0.000109,2]
[406703784,1772105444272,-151.0,0.000109,2]
[406703785,1772105444281,-4278.92841349,0.000109,2]
[406703786,1772105444291,-4278.92841349,0.000109,2]
[406703787,1772105444300,-4278.92841349,0.000109,2]
[406703788,1772105444311,-200.0,0.00010959,2]
[406703789,1772105444320,-166.66,0.00010959,2]
[406703790,1772105444330,-3643.09,0.00010959,2]
[406703791,1772105444342,-150.0,0.00010959,2]
[406703792,1772105444353,-151.0,0.00010959,2]
[406703793,1772105444362,-151.0,0.00010959,2]
[406703794,1772105444371,-151.0,0.00010959,2]
[406703795,1772105444381,-290.37,0.00010959,2]
[406703796,1772105444391,-1277.0,0.00010984,2]
[406703797,1772105444400,-1211.0,0.00010984,2]
[406703798,1772105444410,-920.0,0.00010984,2]
[406703799,1772105444419,-151.0,0.00010984,2]
[406703800,1772105444429,-151.0,0.00010984,2]
[406703801,1772105444438,-151.0,0.00010984,2]
[406703802,1772105444448,-1347.422,0.00010984,2]
[406703803,1772105444457,-2456.0,0.00010984,2]
[406703804,1772105444466,-618.0,0.00010984,2]
[406703805,1772105444476,-461.0,0.00011036,2]
[406703806,1772105444485,-166.66,0.00011068,2]
[406703807,1772105444495,-500.0,0.0001107,2]
[406703808,1772105444504,-1000.0,0.0001107,2]
[406703809,1772105444514,-18047.85196535,0.00011099,2]
[406703810,1772105444523,-18047.85196532,0.00011099,2]
[406703811,1772105444532,-18047.85196532,0.00011099,2]
[406703812,1772105444542,-1931.19145244,0.00011099,2]
[406703813,1772105444827,-4939.51232533,0.00011099,2]
[406703814,1772105444839,-553.09022308,0.00011099,2]
[406703815,1772105444851,-2509.07303865,0.00011099,2]
[406703816,1772105444864,-942.7273993,0.00011099,2]
[406703817,1772105444880,-1030.1308482,0.00011099,2]
[406703818,1772105444891,-1208.45596407,0.00011099,2]
[406703819,1772105444902,-623.16483502,0.00011099,2]
[406703950,1772106629834,-150.0,9.781e-05,7]
[406703951,1772106631345,-150.0,9.781e-05,7]
[406703959,1772106632160,-150.0,9.781e-05,7]
[406703963,1772106632203,-725.81311733,8.84e-05,2]
[406703966,1772106632258,-274.18688267,8.84e-05,2]
[406703967,1772106632267,-2500.0,8.97e-05,2]
[406703968,1772106632276,-1399.40726508,9e-05,2]
[406703969,1772106632285,-1200.0,9.05e-05,2]
[406703970,1772106632294,-2500.0,9.051e-05,2]
[406703971,1772106632304,-2500.0,9.051e-05,2]
[406703972,1772106632313,-380.96,9.1e-05,2]
[406703973,1772106632321,-300.0,9.102e-05,2]
[406703974,1772106632330,-195.0,9.104e-05,2]
[406703975,1772106632338,-300.0,9.109e-05,2]
[406703976,1772106632347,-300.0,9.109e-05,2]
[406703977,1772106632356,-300.0,9.109e-05,2]
[406703978,1772106632365,-195.0,9.116e-05,2]
[406703979,1772106632374,-195.0,9.116e-05,2]
[406703980,1772106632382,-195.0,9.116e-05,2]
[406703981,1772106632391,-1004.67436263,9.191e-05,2]
[406703982,1772106632401,-487452.5951577,9.192e-05,2]
[406703983,1772106632412,-197691.7158731,9.192e-05,2]
[406703984,1772106632424,-59698.95652813,9.192e-05,2]
[406703985,1772106632442,-351.5299975,9.192e-05,2]
[406703986,1772106632453,-21018.0468151,9.192e-05,2]
[406703994,1772106632924,-150.0,9.781e-05,7]
[406703995,1772106634109,-150.0,9.781e-05,7]
[406703996,1772106635064,-150.0,9.781e-05,7]
[406703997,1772106635853,-150.0,9.781e-05,7]
[406703998,1772106636696,-150.0,9.781e-05,7]
[406703999,1772106637568,-150.0,9.781e-05,7]
[406704003,1772106638270,-500.0,9.192e-05,2]
[406704004,1772106638376,-500.0,9.192e-05,2]
[406704005,1772106638522,-150.0,9.781e-05,7]
[406704028,1772106640774,-1048.02066522,9.192e-05,2]
[406704029,1772106640789,-299.70409596,9.192e-05,2]
[406704030,1772106640799,-326.37913478,9.192e-05,2]
[406704046,1772106643483,-62733.57787046,9.192e-05,2]
[406704047,1772106643495,-3900.90092701,9.192e-05,2]
[406704048,1772106643640,-3874.85299278,9.192e-05,2]
[406704056,1772106646202,-470.0,9.192e-05,2]
[406704057,1772106646215,-494.61771879,9.192e-05,2]
[406704058,1772106646226,-651.98542784,9.192e-05,2]
[406704059,1772106646256,-877.65980518,9.192e-05,2]
[406704060,1772106646366,-7629.51241606,9.192e-05,2]
[406704066,1772106729919,-150.0,9.781e-05,7]
[406704067,1772106730937,-150.0,9.781e-05,7]
[406704068,1772106731878,-150.0,9.781e-05,7]
[406704069,1772106732690,-150.0,9.781e-05,7]
[406704070,1772106733491,-150.0,9.781e-05,7]
[406704071,1772106734369,-150.0,9.781e-05,7]
[406704072,1772106735234,-150.0,9.781e-05,7]
[406704073,1772106736074,-150.0,9.781e-05,7]
[406704074,1772106736995,-150.0,9.781e-05,7]
[406704075,1772106738564,-150.0,9.781e-05,7]
[406704077,1772107085593,-150.0,9.781e-05,7]
[406704078,1772107129532,-150.0,9.781e-05,7]
[406704079,1772107132991,-150.0,9.781e-05,7]
[406704080,1772107146455,-250.0,9.781e-05,7]
[406704085,1772107339377,2300.0,8.7e-05,3]
[406704086,1772107349174,4600.0,8.8e-05,3]
[406704090,1772107354386,6900.0,8.9e-05,3]
[406704091,1772107356493,9200.0,9e-05,3]
[406704140,1772107476579,172.0,4.9e-07,2]
[406704199,1772107546058,-150.0,9.781e-05,7]
[406704203,1772107622551,-150.0,0.00011525,14]
[406704204,1772107625214,1100.0,8.7e-05,3]
[406704205,1772107627311,2300.0,8.8e-05,3]
[406704206,1772107629564,3500.0,8.9e-05,3]
[406704207,1772107631534,4600.0,9e-05,3]
[406704334,1772107799866,1067.91,4.311e-05,2]
[406704335,1772107800054,1067.91,4.497e-05,2]
[406704336,1772107800251,1067.91,4.682e-05,2]
[406704337,1772107800445,1067.91,4.868e-05,2]
[406704338,1772107800644,1067.91,5.054e-05,2]
[406704339,1772107800843,1067.91,5.239e-05,2]
[406704340,1772107801043,1067.91,5.425e-05,2]
[406704341,1772107801251,1043.13,5.61e-05,2]
[406704342,1772107801273,24.78,5.61e-05,2]
[406704343,1772107801660,1067.91,5.796e-05,2]
[406704344,1772107801736,1067.91,5.982e-05,2]
[406704345,1772107801888,1067.91,6.167e-05,2]
[406704346,1772107802290,1067.91,6.353e-05,2]
[406704377,1772107831362,-1067.91,6.539e-05,2]
[406704379,1772107831371,-1067.91,6.724e-05,2]
[406704381,1772107831381,-1067.91,6.91e-05,2]
[406704382,1772107831390,-1067.91,7.096e-05,2]
[406704383,1772107831399,-2000.0,7.193e-05,2]
[406704385,1772107831408,-1067.91,7.281e-05,2]
[406704386,1772107831417,-254.40737859,7.467e-05,2]
[406704387,1772107831428,-290.05642929,7.467e-05,2]
[406704388,1772107831439,-523.44619212,7.467e-05,2]
[406704389,1772107831449,-349.21911832,7.653e-05,2]
[406704390,1772107831459,-596.61311656,7.653e-05,2]
[406704391,1772107831522,-122.07776512,7.653e-05,2]
[406704392,1772107831531,-481.76459085,7.838e-05,2]
[406704532,1772107839818,-304.45809423,7.838e-05,2]
[406704535,1772107839871,-281.68731492,7.838e-05,2]
[406704536,1772107839880,-200.0,7.866e-05,2]
[406704537,1772107839889,-698.43,8.149e-05,2]
[406704538,1772107839898,-127.04447857,8.152e-05,2]
[406704809,1772107845443,-193.35919633,8.152e-05,2]
[406704810,1772107845458,-300.0,8.174e-05,2]
[406704811,1772107845472,-1200.0,8.174e-05,2]
[406704812,1772107845486,-2414.54743612,8.175e-05,2]
[406704828,1772107999282,160.0,8e-05,3]
[406704831,1772108234113,200.0,8.6e-05,3]
[406704832,1772108236209,400.0,8.7e-05,3]
[406704833,1772108238323,600.0,8.8e-05,3]
[406704834,1772108240419,800.0,8.9e-05,3]
[406704835,1772108242507,1000.0,9e-05,3]
[406704840,1772108794310,-150.0,9.781e-05,7]
[406704841,1772108795720,-150.0,9.781e-05,7]
[406704842,1772108796451,-150.0,9.781e-05,7]
[406704843,1772108797279,-150.0,9.781e-05,7]
[406704844,1772108798140,-150.0,9.781e-05,7]
[406704845,1772108799008,-150.0,9.781e-05,7]
[406704846,1772108800122,-150.0,9.781e-05,7]
[406704847,1772108800779,-150.0,9.781e-05,7]
[406704848,1772108801673,-150.0,9.781e-05,7]
[406704849,1772108802611,-150.0,9.781e-05,7]
[406704853,1772108849318,2600.0,8.9e-05,3]
[406704854,1772108851418,3200.0,9e-05,3]
[406705090,1772109003675,150.0,7.899e-05,7]
[406705092,1772109031566,-600.0,7.8e-05,2]
[406705093,1772109031576,-216.0,7.8e-05,2]
[406705094,1772109031586,-206.19476615,7.806e-05,2]
[406705095,1772109031597,-875.54,7.806e-05,2]
[406705096,1772109031609,-3918.26523385,7.806e-05,2]
[406705097,1772109031618,-250.0,7.813e-05,2]
[406705098,1772109031628,-166.66,7.825e-05,2]
[406705099,1772109031637,-2004.6164529,7.837e-05,2]
[406705100,1772109031647,-203.0,7.85e-05,2]
[406705101,1772109031656,-300.0,7.899e-05,2]
[406705102,1772109031666,-300.0,7.899e-05,2]
[406705103,1772109031676,-1200.0,7.899e-05,2]
[406705104,1772109031686,-300.0,7.899e-05,2]
[406705105,1772109031696,-230.34,7.9e-05,2]
[406705106,1772109031706,-1300.0,7.9e-05,2]
[406705107,1772109031715,-500.0,7.933e-05,2]
[406705108,1772109031725,-1900.0,8e-05,2]
[406705109,1772109031735,-166.66,8.084e-05,2]
[406705110,1772109031744,-393.0,8.128e-05,2]
[406705111,1772109031754,-279.0,8.128e-05,2]
[406705112,1772109031765,-220.0,8.161e-05,2]
[406705113,1772109031774,-300.0,8.174e-05,2]
[406705114,1772109031784,-1849.89256388,8.175e-05,2]
[406705115,1772109031793,-441.0,8.194e-05,2]
[406705116,1772109031803,-369.101714,8.219e-05,2]
[406705117,1772109031812,-2903.08,8.219e-05,2]
[406705118,1772109031822,-356.8,8.219e-05,2]
[406705119,1772109031831,-3921.74,8.219e-05,2]
[406705120,1772109031841,-1500.0,8.223e-05,2]
[406705121,1772109031851,-1310.0,8.226e-05,2]
[406705122,1772109031860,-508.0,8.241e-05,2]
[406705123,1772109031871,-162.43895648,8.333e-05,2]
[406705124,1772109031880,-166.66,8.342e-05,2]
[406705125,1772109031890,-150.0,8.346e-05,2]
[406705126,1772109031900,-1267.1819834,8.347e-05,2]
[406705127,1772109031909,-124787.7793903,8.347e-05,2]
[406705128,1772109031918,-335948.51055256,8.351e-05,2]
[406705129,1772109031930,-5232.11762342,8.351e-05,2]
[406705130,1772109031941,-5140.20973332,8.351e-05,2]
[406705131,1772109031956,-751.72228898,8.351e-05,2]
[406705132,1772109031968,-454.55387908,8.351e-05,2]
[406705133,1772109031980,-2815.94946393,8.351e-05,2]
[406705134,1772109031991,-9286.69525022,8.351e-05,2]
[406705135,1772109032002,-1900.0,8.351e-05,2]
[406705136,1772109032014,-897.6569597,8.351e-05,2]
[406705137,1772109032025,-2355.45218517,8.351e-05,2]
[406705138,1772109032041,-451.0,8.351e-05,2]
[406705139,1772109032052,-7380.98693489,8.351e-05,2]
[406705254,1772109040047,-136602.56531058,8.351e-05,2]
[406705263,1772109042953,-1832.67330149,8.351e-05,2]
[406705264,1772109042964,-384.996,8.351e-05,2]
[406705329,1772109066018,157.0,8.351e-05,3]
[406705331,1772109127006,157.0,8.351e-05,3]
[406705332,1772109187231,157.0,8.351e-05,3]
[406705333,1772109247620,157.0,8.351e-05,3]
[406705334,1772109308277,174.0,8.351e-05,3]
[406705335,1772109312375,157.0,8.351e-05,3]
[406705336,1772109360235,-224.9999,7.7e-05,2]
[406705337,1772109360257,-1125.748,8.184e-05,2]
[406705338,1772109360279,-150.0,8.219e-05,2]
[406705339,1772109360301,-1000.0,8.219e-05,2]
[406705340,1772109360325,-195.0,8.285e-05,2]
[406705341,1772109360346,-151.0,8.348e-05,2]
[406705342,1772109360367,-151.0,8.349e-05,2]
[406705343,1772109360560,-1200.0,8.349e-05,2]
[406705344,1772109360582,-500.0,8.35e-05,2]
[406705345,1772109360603,-302.2521,8.35e-05,2]
[406705346,1772109367134,157.0,8.351e-05,3]
[406705347,1772109425687,157.0,8.351e-05,3]
[406705348,1772109485510,158.0,8.351e-05,3]